bitfinex-derivatives/quotes_ETHF0:USTF0_20210405
["timestamp","ask_amount","ask_price","bid_price","bid_amount"]
[1617630786919,2.90695,2075.5,2075.3,5.86]
[1617630787215,2.90695,2075.5,2075.4,5.87]
[1617630787415,32.90695,2075.5,2075.4,5.87]
[1617630787614,32.90695,2075.5,2075.3,5.86]
[1617630788014,32.90695,2075.5,2075.4,5.84]
[1617630788214,32.90695,2075.5,2075.3,5.89]
[1617630788614,32.90695,2075.5,2075.4,5.89]
[1617630788814,32.90695,2075.5,2075.3,5.82]
[1617630789214,32.90695,2075.5,2075.2,62.6914]
[1617630789215,32.90695,2075.5,2075.4,5.87]
[1617630789416,32.90695,2075.5,2074.2,2.6956]
[1617630789615,32.90695,2075.5,2075.3,6.04]
[1617630789816,32.90695,2075.5,2074.5,65.7704]
[1617630789817,32.90695,2075.5,2075.4,5.9]
[1617630790017,32.90695,2075.5,2074.6,0.77]
[1617630790418,32.90695,2075.5,2075.4,5.95]
[1617630790617,32.90695,2075.5,2074.6,5.94]
[1617630791117,2.90695,2075.1,2075.0,2.90695]
[1617630791524,2.90695,2075.1,2075.0,6.06]
[1617630791918,2.90695,2075.1,2074.6,5.85]
[1617630792318,2.90695,2075.1,2075.0,5.78]
[1617630792519,2.90695,2075.1,2074.6,6.03]
[1617630792917,2.90695,2075.1,2075.0,6.04]
[1617630793316,2.90695,2075.1,2074.6,5.83]
[1617630793520,32.90695,2075.1,2075.0,5.87]
[1617630793921,32.90695,2075.1,2074.6,6.02]
[1617630794123,32.90695,2075.1,2075.0,5.91]
[1617630794522,32.90695,2075.1,2074.7,5.98]
[1617630794721,32.90695,2075.1,2075.0,5.76]
[1617630794924,32.90695,2075.1,2073.4,0.1]
[1617630795121,34.78275,2075.1,2075.0,5.97]
[1617630795321,34.78275,2075.1,2073.8,5.91]
[1617630795322,31.8758,2075.1,2073.8,5.91]
[1617630795521,31.8758,2075.1,2073.8,5.6014]
[1617630795723,31.8758,2075.1,2075.0,3.757]
[1617630795924,31.8758,2075.1,2074.9,5.85]
[1617630796123,31.8758,2075.1,2073.9,5.83]
[1617630796323,31.8758,2075.1,2073.4,2.7991]
[1617630796523,1.8758,2075.1,2074.0,6.06]
[1617630796724,30.0,2075.0,2074.0,6.06]
[1617630796921,30.0,2075.0,2073.4,5.84]
[1617630797122,30.0,2075.0,2074.1,6.02]
[1617630797523,30.0,2075.0,2073.4,6.07]
[1617630797724,30.0,2075.0,2074.2,5.97]
[1617630798124,30.0,2075.0,2073.4,6.04]
[1617630798526,30.0,2075.0,2074.3,6.07]
[1617630798727,30.0,2075.0,2073.4,5.88]
[1617630799026,30.0,2075.0,2074.4,5.9]
[1617630799229,2.90695,2074.5,2074.4,5.9]
[1617630799426,33.86275,2074.5,2073.4,5.85]
[1617630799627,33.86275,2074.5,2074.4,5.7816]
[1617630800027,33.86275,2074.5,2073.4,6.02]
[1617630800227,33.86275,2074.5,2074.4,5.83]
[1617630800527,33.86275,2074.5,2073.3,72.53315]
[1617630800528,33.86275,2074.5,2073.4,5.85]
[1617630801228,2.90695,2073.5,2073.4,5.85]
[1617630803232,2.90695,2073.5,2073.4,5.7962]
[1617630804132,32.90695,2073.5,2073.4,5.7962]
[1617630804336,32.90695,2073.5,2073.4,4.8361]
[1617630804534,32.90695,2073.5,2073.4,3.8861]
[1617630804735,32.90695,2073.5,2073.4,2.457]
[1617630805134,32.90695,2073.5,2072.6,55.3142]
[1617630805333,30.0,2073.5,2072.7,2.90695]
[1617630805534,30.0,2073.5,2073.4,4.89]
[1617630805732,30.0,2073.5,2072.7,6.03]
[1617630805934,30.0,2073.5,2072.6,55.3142]
[1617630806233,30.0,2073.5,2072.7,6.05]
[1617630807136,30.0,2073.4,2072.7,6.05]
[1617630807336,2.90695,2072.8,2072.7,6.05]
[1617630807536,5.50305,2072.8,2072.7,5.2259]
[1617630807936,5.50305,2072.8,2072.7,4.4019]
[1617630808236,5.50305,2072.8,2072.7,4.3441]
[1617630808638,2.90695,2072.8,2072.7,4.3441]
[1617630810337,2.90695,2072.8,2072.7,3.6378]
[1617630816950,33.87885,2072.8,2072.7,3.6378]
[1617630818451,3.87885,2072.8,2072.7,3.6378]
[1617630830659,2.90695,2072.8,2072.7,3.6378]
[1617630832159,2.90695,2072.8,2072.7,2.6878]
[1617630839871,4.77605,2072.8,2072.7,2.6878]
[1617630841174,2.90695,2072.8,2072.7,2.6878]
[1617630844878,0.9664,2073.6,2072.8,70.5249]
[1617630845078,30.0,2074.0,2072.8,70.5249]
[1617630845277,30.0,2074.0,2072.9,5.79]
[1617630845477,30.0,2074.0,2073.4,2.90695]
[1617630845877,30.0,2074.0,2073.5,5.94]
[1617630847079,0.9558,2074.5,2074.0,75.2947]
[1617630847280,0.9558,2074.5,2074.0,77.2897]
[1617630847479,2.90695,2074.1,2074.0,80.19665]
[1617630847879,2.90695,2074.1,2074.0,86.11665]
[1617630848283,3.85705,2074.1,2074.0,86.11665]
[1617630848479,2.90695,2074.1,2074.0,86.11665]
[1617630850082,3.88315,2074.1,2074.0,83.2097]
[1617630850595,2.90695,2074.1,2074.0,83.2097]
[1617630851480,2.90695,2074.1,2074.0,86.11665]
[1617630852481,30.0,2075.1,2074.0,86.11665]
[1617630852681,30.0,2075.1,2074.0,10.82195]
[1617630853081,0.9584,2075.3,2074.9,65.3071]
[1617630853282,30.0,2075.4,2074.9,65.3071]
[1617630853483,30.0,2075.4,2075.0,6.05]
[1617630854284,30.9731,2075.4,2075.0,6.05]
[1617630855483,2.90695,2075.1,2075.0,6.05]
[1617630855685,2.90695,2075.1,2075.0,5.6339]
[1617630857385,5.3661,2074.1,2073.4,2.0]
[1617630857789,5.3661,2074.1,2073.9,6.02]
[1617630858187,5.3661,2074.1,2073.5,5.99]
[1617630858389,5.3661,2074.1,2074.0,5.82]
[1617630858787,5.3661,2074.1,2073.6,5.94]
[1617630858987,5.3661,2074.1,2074.0,5.92]
[1617630859387,5.3661,2074.1,2073.7,5.89]
[1617630859587,2.90695,2073.8,2073.7,8.79695]
[1617630859786,2.90695,2073.8,2073.7,2.90695]
[1617630859989,5.3661,2074.1,2073.7,8.86695]
[1617630861589,2.90695,2073.8,2073.7,8.86695]
[1617630864094,2.90695,2073.8,2073.7,4.9871]
[1617630864493,2.90695,2073.8,2073.7,3.3303]
[1617630865295,2.90695,2073.8,2073.7,3.0921]
[1617630865495,32.90695,2073.8,2073.7,3.0921]
[1617630865697,32.90695,2073.8,2073.7,2.1221]
[1617630866097,32.90695,2073.8,2073.7,0.2021]
[1617630867495,32.90695,2073.8,2073.6,64.7833]
[1617630867895,32.90695,2073.8,2073.7,6.04]
[1617630870897,32.90695,2073.8,2073.7,5.9824]
[1617630872700,32.90695,2073.8,2073.7,5.7431]
[1617630872902,32.90695,2073.8,2073.7,4.0715]
[1617630873301,32.90695,2073.8,2073.7,2.9248]
[1617630873501,32.90695,2073.8,2073.7,1.71]
[1617630875806,32.90695,2073.8,2073.7,1.6221]
[1617630876206,32.90695,2073.8,2073.7,0.6821]
[1617630877809,32.90695,2073.8,2073.0,2.90695]
[1617630878110,32.90695,2073.8,2073.7,6.05]
[1617630878510,32.90695,2073.8,2073.1,5.85]
[1617630878710,32.90695,2073.8,2073.7,6.05]
[1617630879010,32.90695,2073.8,2073.1,6.07]
[1617630879611,2.90695,2073.2,2073.1,6.07]
[1617630879810,33.87375,2073.2,2073.1,6.07]
[1617630880211,33.87375,2073.2,2072.7,5.97]
[1617630880411,33.87375,2073.2,2072.7,5.4969]
[1617630880610,33.87375,2073.2,2073.1,6.05]
[1617630880810,33.87375,2073.2,2072.6,74.1747]
[1617630880811,33.87375,2073.2,2072.7,5.91]
[1617630881211,33.87375,2073.2,2073.1,5.88]
[1617630881411,33.87375,2073.2,2072.7,5.93]
[1617630881611,2.90695,2072.8,2072.7,8.83695]
[1617630881811,3.88325,2072.8,2072.7,2.90695]
[1617630882214,3.88325,2072.8,2072.7,8.91695]
[1617630882411,3.88325,2072.8,2072.7,6.01]
[1617630882811,33.88325,2072.8,2072.0,4.0]
[1617630883212,33.88325,2072.8,2072.7,5.87]
[1617630883412,33.88325,2072.8,2072.0,5.91]
[1617630883612,30.9763,2072.8,2072.4,2.90695]
[1617630883812,30.9763,2072.8,2072.7,6.01]
[1617630884011,30.9763,2072.8,2072.5,5.99]
[1617630885717,2.90695,2072.6,2072.5,5.99]
[1617630887119,32.90695,2072.6,2072.5,5.99]
[1617630887317,35.12525,2072.6,2072.5,5.99]
[1617630887916,35.12525,2072.6,2071.9,4.90695]
[1617630887917,35.12525,2072.6,2072.0,6.03]
[1617630888217,35.12525,2072.6,2072.5,6.07]
[1617630888617,35.12525,2072.6,2072.0,5.88]
[1617630888817,32.90695,2072.6,2072.5,5.97]
[1617630889119,32.90695,2072.6,2072.0,5.86]
[1617630889420,32.90695,2072.6,2072.5,5.84]
[1617630889720,32.90695,2072.6,2072.0,5.82]
[1617630891824,2.90695,2072.1,2072.0,5.82]
[1617630895727,2.90695,2072.1,2072.0,7.82]
[1617630898730,3.86245,2072.1,2072.0,7.82]
[1617630900130,2.90695,2072.1,2072.0,7.82]
[1617630901136,3.86285,2072.1,2072.0,7.82]
[1617630901336,2.90695,2072.1,2072.0,7.82]
[1617630905838,0.9763,2072.8,2072.0,7.82]
[1617630906039,0.9763,2072.8,2072.2,79.7505]
[1617630906439,0.9763,2072.8,2072.3,5.82]
[1617630907749,0.9763,2072.8,2072.4,2.90695]
[1617630908142,0.9763,2072.8,2072.5,5.91]
[1617630909742,2.90695,2072.6,2072.5,5.91]
[1617630913548,2.90695,2072.6,2072.3,5.92]
[1617630913748,2.90695,2072.6,2072.5,5.87]
[1617630914250,2.90695,2072.6,2072.4,5.96]
[1617630914450,2.90695,2072.6,2072.5,5.81]
[1617630914852,2.90695,2072.6,2072.4,5.79]
[1617630915051,2.90695,2072.6,2072.5,5.98]
[1617630915351,2.90695,2072.6,2072.4,6.03]
[1617630915752,2.90695,2072.6,2072.5,5.99]
[1617630915951,2.90695,2072.6,2072.3,2.90695]
[1617630915952,2.90695,2072.6,2072.4,5.94]
[1617630918456,61.0561,2074.1,2072.4,5.94]
[1617630918669,61.0561,2074.1,2072.6,69.9667]
[1617630918857,61.0561,2074.1,2072.6,71.9667]
[1617630919057,61.0561,2074.1,2072.7,5.83]
[1617630919257,61.0561,2074.1,2072.7,7.83]
[1617630919663,91.0561,2074.1,2072.7,7.83]
[1617630919863,91.0561,2074.1,2073.1,2.90695]
[1617630920064,91.0561,2074.1,2073.1,4.91045]
[1617630920258,91.0561,2074.1,2073.2,5.81]
[1617630921958,2.90695,2073.3,2073.2,5.81]
[1617630922160,3.87185,2073.3,2073.2,5.81]
[1617630926860,3.87185,2073.3,2072.8,5.96]
[1617630927061,3.87185,2073.3,2072.9,2.0]
[1617630927261,3.87185,2073.3,2073.2,5.94]
[1617630927462,3.87185,2073.3,2073.0,5.8]
[1617630927760,3.87185,2073.3,2073.2,5.96]
[1617630928160,3.87185,2073.3,2073.0,6.03]
[1617630928360,2.90695,2073.3,2073.2,5.83]
[1617630928562,2.90695,2073.3,2073.2,8.3205]
[1617630928760,2.90695,2073.3,2073.2,2.4905]
[1617630928961,2.90695,2073.3,2073.2,8.4105]
[1617630929362,3.86945,2073.3,2073.2,8.4105]
[1617630929567,2.90695,2073.3,2073.2,8.4105]
[1617630929862,2.90695,2073.3,2073.2,11.31745]
[1617630930864,61.0561,2074.1,2073.2,11.31745]
[1617630931866,61.0561,2074.1,2073.8,2.90695]
[1617630932066,61.0561,2074.1,2073.8,5.02735]
[1617630932266,61.0561,2074.1,2073.8,10.87735]
[1617630932667,5.3661,2074.1,2073.8,10.87735]
[1617630933968,3.88155,2073.9,2073.8,10.87735]
[1617630939183,3.88155,2073.9,2073.8,67.0584]
[1617630944294,3.88155,2073.9,2073.8,7.9704]
[1617630946095,3.88155,2073.9,2073.8,10.87735]
[1617630947196,2.90695,2073.9,2073.8,10.87735]
[1617630947396,2.90695,2073.9,2073.8,12.87735]
[1617630948397,5.3661,2074.1,2073.8,12.87735]
[1617630948600,5.3661,2074.1,2073.9,56.1943]
[1617630948799,5.3661,2074.1,2074.0,2.0]
[1617630949000,5.3661,2074.1,2074.0,7.99]
[1617630952104,9.23085,2074.1,2074.0,5.99]
[1617630952503,9.23085,2074.1,2073.9,5.8]
[1617630952703,8.27305,2074.1,2073.9,5.8]
[1617630952903,8.27305,2074.1,2074.0,5.81]
[1617630953105,8.27305,2074.1,2073.9,5.88]
[1617630953504,8.27305,2074.1,2074.0,5.97]
[1617630953704,39.22455,2074.1,2073.3,6.06]
[1617630954104,36.3176,2074.1,2074.0,5.82]
[1617630954306,36.3176,2074.1,2073.4,8.70695]
[1617630954505,36.3176,2074.1,2073.5,1.61]
[1617630954705,36.3176,2074.1,2074.0,5.49]
[1617630955105,36.3176,2074.1,2073.6,5.91]
[1617630955515,36.3176,2074.1,2074.0,5.6771]
[1617630955714,36.3176,2074.1,2073.7,5.85]
[1617630956114,36.3176,2074.1,2074.0,5.8]
[1617630956307,36.3176,2074.1,2073.2,2.25]
[1617630956509,36.3176,2074.1,2073.8,5.24]
[1617630956711,36.3176,2074.1,2074.0,5.73]
[1617630956920,6.3176,2074.1,2074.0,65.5839]
[1617630957318,6.3176,2074.1,2074.0,71.4439]
[1617630958212,9.22455,2074.1,2074.0,71.4439]
[1617630962116,9.22455,2074.1,2074.0,74.35085]
[1617630962916,8.27305,2074.1,2074.0,74.35085]
[1617630966221,5.3661,2074.1,2074.0,74.35085]
[1617630966422,5.3661,2074.1,2074.0,79.35085]
[1617630966622,5.3661,2074.1,2074.0,81.35085]
[1617630967422,5.3661,2074.1,2074.0,15.76695]
[1617630976328,5.3661,2074.1,2074.0,93.93155]
[1617630976729,5.3661,2074.1,2074.0,15.76695]
[1617630984239,0.0001,2074.1,2074.0,15.76695]
[1617630996246,0.0001,2074.1,2074.0,18.12835]
[1617631000661,0.0001,2074.1,2074.0,48.12835]
[1617631003653,0.0001,2074.1,2074.0,18.12835]
[1617631007459,0.0001,2074.1,2074.0,15.76695]
[1617631016864,0.0001,2074.1,2074.0,13.76695]
[1617631020468,0.0001,2074.1,2074.0,15.76695]
[1617631033781,0.0001,2074.1,2074.0,13.76695]
[1617631036490,0.0001,2074.1,2074.0,15.76695]
[1617631047096,0.0001,2074.1,2074.0,13.76695]
[1617631052201,0.0001,2074.1,2074.0,16.10075]
[1617631052402,0.0001,2074.1,2074.0,18.10075]
[1617631053801,0.0001,2074.1,2074.0,22.94278699]
[1617631055505,0.0001,2074.1,2074.0,18.10075]
[1617631055906,0.0001,2074.1,2074.0,15.76695]
[1617631074931,1.9061,2074.1,2074.0,15.76695]
[1617631076332,0.0001,2074.1,2074.0,15.76695]
[1617631080636,0.0001,2074.1,2074.0,45.76695]
[1617631081654,0.0001,2074.1,2074.0,51.69637692]
[1617631082147,0.0001,2074.1,2074.0,45.76695]
[1617631084343,0.0001,2074.1,2074.0,52.77454524]
[1617631084742,0.0001,2074.1,2074.0,45.76695]
[1617631088545,0.0001,2074.1,2074.0,52.75667423]
[1617631088744,0.0001,2074.1,2074.0,52.77667423]
[1617631088944,0.0001,2074.1,2074.0,45.78695]
[1617631090346,2.90695,2076.5,2074.1,58.5436]
[1617631090545,2.90695,2076.5,2074.2,32.0]
[1617631090744,2.90695,2076.5,2074.2,37.88]
[1617631091248,56.1247,2077.0,2075.0,4.83261621]
[1617631091447,56.1247,2077.0,2076.9,2.90695]
[1617631091645,10.0,2077.2,2076.9,2.90695]
[1617631091646,10.0,2077.2,2076.9,5.42565]
[1617631091848,10.0,2077.2,2076.9,11.19565]
[1617631092046,10.0,2077.2,2077.0,78.7495]
[1617631092446,10.0,2077.2,2077.1,5.78]
[1617631093448,12.90695,2077.2,2077.1,5.78]
[1617631095050,10.0,2077.2,2077.1,5.78]
[1617631095253,10.0,2077.2,2077.0,6.0]
[1617631095650,10.0,2077.2,2077.1,5.94]
[1617631095850,10.0,2077.2,2077.0,5.96]
[1617631096252,10.0,2077.2,2077.1,6.0]
[1617631096453,10.0,2077.2,2077.0,5.85]
[1617631096853,10.0,2077.2,2077.1,5.79]
[1617631097055,10.0,2077.2,2077.1,56.284]
[1617631097454,10.0,2077.2,2077.1,62.174]
[1617631102158,10.0,2077.2,2077.1,5.89]
[1617631102560,10.0,2077.2,2077.0,5.97]
[1617631102960,10.0,2077.2,2077.1,5.83]
[1617631103358,12.90695,2077.2,2077.0,5.98]
[1617631103760,12.90695,2077.2,2077.1,5.91]
[1617631103958,10.0,2077.2,2077.0,5.94]
[1617631104360,10.0,2077.2,2077.1,5.9]
[1617631104559,10.0,2077.2,2077.0,5.95]
[1617631104959,10.0,2077.2,2077.1,6.0]
[1617631105161,10.0,2077.2,2077.0,5.87]
[1617631105561,10.0,2077.2,2077.1,6.05]
[1617631105760,10.0,2077.2,2077.0,5.78]
[1617631107464,12.90695,2077.2,2077.0,5.78]
[1617631110072,10.0,2077.2,2077.0,5.78]
[1617631115277,10.0,2077.2,2077.0,7.78]
[1617631116478,8.2963,2077.2,2077.0,7.78]
[1617631116678,8.2963,2077.2,2077.0,37.78]
[1617631116881,4.3381,2077.2,2077.0,37.78]
[1617631117479,4.3381,2077.2,2077.0,38.7526]
[1617631117679,4.3381,2077.2,2077.0,37.78]
[1617631118679,2.90695,2078.4,2077.2,63.8172]
[1617631118880,2.90695,2078.4,2077.3,2.0]
[1617631119081,2.90695,2078.4,2077.3,10.0559]
[1617631119580,2.90695,2078.4,2078.3,2.90695]
[1617631119981,2.90695,2078.4,2078.3,8.95695]
[1617631121583,2.90695,2078.4,2078.3,80.13045]
[1617631123690,2.90695,2078.7,2078.3,80.13045]
[1617631125692,2.90695,2078.7,2078.6,2.90695]
[1617631126097,2.90695,2078.7,2078.6,8.96695]
[1617631129397,2.90695,2078.7,2078.3,69.14045]
[1617631129598,0.9607,2079.7,2078.6,5.83]
[1617631129798,5.26305,2078.4,2078.3,59.14045]
[1617631130198,5.26305,2078.4,2078.3,59.37045]
[1617631131700,8.17,2078.4,2078.3,62.2774]
[1617631131900,8.17,2078.4,2078.3,64.2774]
[1617631139512,5.26305,2078.4,2078.3,66.3918]
[1617631145213,6.23675,2078.4,2078.3,66.3918]
[1617631145816,5.26305,2078.4,2078.3,64.2774]
[1617631147218,5.26305,2078.4,2078.3,7.88935]
[1617631149524,5.26305,2078.4,2078.3,81.59825]
[1617631150422,5.26305,2078.4,2078.3,7.94745]
[1617631154127,5.26305,2078.4,2078.3,5.13695]
[1617631158932,20.26305,2078.4,2078.3,5.13695]
[1617631161837,20.26305,2078.4,2078.3,83.10805]
[1617631167340,20.26305,2078.4,2078.3,5.13695]
[1617631167941,23.17,2078.4,2078.3,5.13695]
[1617631168143,23.17,2078.4,2078.3,3.13695]
[1617631168542,23.17,2078.4,2078.3,0.23]
[1617631168943,23.17,2078.4,2077.5,5.88]
[1617631169347,23.17,2078.4,2078.3,5.78]
[1617631169543,23.17,2078.4,2077.5,6.02]
[1617631169943,20.26305,2078.4,2078.3,5.77]
[1617631170147,20.26305,2078.4,2078.0,2.90695]
[1617631170344,20.26305,2078.4,2078.1,5.98]
[1617631170544,20.26305,2078.4,2078.3,5.96]
[1617631170944,20.26305,2078.4,2078.2,5.98]
[1617631171147,20.26305,2078.4,2078.3,5.86]
[1617631171547,20.26305,2078.4,2078.0,2.90695]
[1617631171749,20.26305,2078.4,2078.3,6.01]
[1617631171947,23.17,2078.4,2078.3,6.01]
[1617631172146,23.17,2078.4,2078.1,5.99]
[1617631172348,25.1181,2078.4,2078.3,5.92]
[1617631172749,25.1181,2078.4,2078.1,5.87]
[1617631173150,25.1181,2078.4,2078.3,5.95]
[1617631173350,25.1181,2078.4,2078.1,6.06]
[1617631173752,25.1181,2078.4,2078.3,5.87]
[1617631173952,26.0803,2078.4,2078.1,5.83]
[1617631174254,26.0803,2078.4,2078.3,5.94]
[1617631174452,28.0803,2078.4,2078.3,5.94]
[1617631174653,28.0803,2078.4,2078.2,5.88]
[1617631174853,28.0803,2078.4,2078.3,6.04]
[1617631175052,96.8135,2078.4,2078.3,6.04]
[1617631175254,96.8135,2078.4,2077.5,5.93]
[1617631175453,96.8135,2078.4,2078.3,5.89]
[1617631175652,126.8135,2078.4,2078.3,5.89]
[1617631175852,58.0803,2078.4,2077.6,6.06]
[1617631176053,2.90695,2077.7,2077.5,2.8]
[1617631176252,30.0,2077.6,2076.8,2.90695]
[1617631176452,30.0,2077.6,2077.5,5.87]
[1617631176851,32.0,2077.6,2076.9,5.93]
[1617631177053,2.0,2077.6,2077.5,5.99]
[1617631177452,3.88295,2077.7,2076.9,6.06]
[1617631177652,3.88295,2077.7,2076.8,2.90695]
[1617631177653,2.90695,2077.7,2077.5,5.88]
[1617631178054,2.0,2077.6,2076.9,5.79]
[1617631178253,66.9425,2077.4,2076.0,50.0]
[1617631178454,30.0,2077.3,2076.2,6.03]
[1617631178653,30.0,2077.3,2077.0,5.97]
[1617631178853,32.0,2077.3,2076.0,50.0]
[1617631179053,2.0,2077.3,2076.3,6.0]
[1617631179254,2.0,2077.3,2077.1,5.77]
[1617631179453,2.0,2077.3,2076.2,5.99]
[1617631179653,2.0,2077.3,2076.4,5.89]
[1617631179854,4.90695,2077.7,2077.2,5.77]
[1617631180055,2.90695,2077.3,2077.0,2.90695]
[1617631180456,2.90695,2077.3,2077.1,2.09]
[1617631182056,2.90695,2077.3,2076.9,2.90695]
[1617631182357,2.90695,2077.3,2077.2,5.79]
[1617631182759,2.90695,2077.3,2076.9,2.90695]
[1617631182974,2.90695,2077.3,2077.2,5.85]
[1617631183163,2.90695,2077.3,2077.2,7.8971]
[1617631183361,2.90695,2077.3,2077.2,2.0471]
[1617631183560,2.90695,2077.3,2077.2,8.0471]
[1617631184164,2.90695,2077.3,2077.2,10.95405]
[1617631186963,22.26305,2078.4,2077.2,10.95405]
[1617631188163,22.26305,2078.4,2077.6,2.90695]
[1617631188561,22.26305,2078.4,2077.7,6.04]
[1617631189464,20.26305,2078.4,2077.7,6.04]
[1617631190163,20.26305,2078.4,2077.9,2.90695]
[1617631190563,20.26305,2078.4,2078.0,5.82]
[1617631192165,2.90695,2078.1,2078.0,5.82]
[1617631195481,75.71285,2078.1,2078.0,5.82]
[1617631195667,77.93915,2078.1,2078.0,5.82]
[1617631195878,77.93915,2078.1,2077.9,5.95]
[1617631196279,5.13325,2078.1,2078.0,5.31]
[1617631196467,5.13325,2078.1,2077.7,0.47]
[1617631196869,5.13325,2078.1,2077.6,58.95015]
[1617631196870,2.90695,2078.1,2078.0,5.95]
[1617631197070,2.90695,2078.1,2077.7,5.87]
[1617631197472,2.90695,2078.1,2078.0,6.04]
[1617631197670,2.90695,2078.1,2077.7,5.84]
[1617631198072,2.90695,2078.1,2078.0,2.90695]
[1617631198474,2.90695,2078.1,2078.0,8.74695]
[1617631199073,2.90695,2078.1,2078.0,5.84]
[1617631199475,2.90695,2078.1,2078.0,7.9015]
[1617631199675,2.90695,2078.1,2078.0,2.0615]
[1617631200077,2.90695,2078.1,2078.0,10.96845]
[1617631200876,20.26305,2078.4,2078.0,10.96845]
[1617631202078,20.26305,2078.4,2078.3,2.90695]
[1617631202479,20.26305,2078.4,2078.3,4.90695]
[1617631202678,20.26305,2078.4,2078.3,10.95695]
[1617631202882,13.8181,2080.3,2078.3,10.95695]
[1617631202883,73.7998,2080.3,2078.3,10.95695]
[1617631203079,73.7998,2080.3,2078.7,71.3982]
[1617631203278,73.7998,2080.3,2078.8,2.0]
[1617631203480,73.7998,2080.3,2078.8,7.9]
[1617631203879,1.29015604,2080.4,2078.8,7.9]
[1617631204080,1.29015604,2080.4,2079.7,67.3751]
[1617631204279,1.29015604,2080.4,2079.7,69.7184]
[1617631204480,1.29015604,2080.4,2079.8,5.83]
[1617631206282,1.29015604,2080.4,2080.2,2.90695]
[1617631206482,1.29015604,2080.4,2080.2,5.20875]
[1617631206682,0.9561,2081.5,2080.3,5.91]
[1617631206882,0.01404151,2082.0,2081.4,59.728]
[1617631207084,0.954,2082.2,2081.4,62.0244]
[1617631207282,12.88057942,2082.5,2081.4,62.0244]
[1617631207283,12.8525,2082.5,2081.5,5.82]
[1617631208283,3.5397,2082.8,2082.4,71.6258]
[1617631208483,0.964,2083.1,2082.4,73.7171]
[1617631208785,0.964,2083.1,2082.5,5.84]
[1617631209584,0.02,2083.0,2082.9,62.1441]
[1617631209784,0.02,2083.0,2082.9,63.87]
[1617631209986,0.02,2083.0,2082.9,69.78]
[1617631210185,0.02,2083.0,2082.9,72.68695]
[1617631210387,0.02,2083.0,2082.9,10.54285]
[1617631211187,2.90695,2083.1,2082.9,8.81695]
[1617631211388,2.90695,2083.1,2082.9,10.55285]
[1617631211586,0.01402561,2083.9,2082.9,10.55285]
[1617631211789,0.01402561,2083.9,2083.1,78.5216]
[1617631211987,0.02805122,2084.0,2083.1,78.5216]
[1617631211988,0.01402404,2084.0,2083.1,78.5216]
[1617631212187,2.90695,2083.8,2083.7,2.90695]
[1617631212388,0.01402272,2084.2,2083.7,5.05555]
[1617631212587,0.01402272,2084.2,2083.8,5.91]
[1617631212788,0.01401801,2084.9,2083.8,5.91]
[1617631212988,0.01401801,2084.9,2083.7,5.05555]
[1617631213187,0.9611,2085.2,2083.8,7.76]
[1617631213389,0.01401356,2085.8,2084.8,76.2656]
[1617631213590,13.8308,2085.9,2084.8,78.7283]
[1617631213788,13.8308,2085.9,2084.9,5.79]
[1617631214188,2.90695,2085.0,2084.9,5.79]
[1617631214789,2.90695,2085.0,2084.3,5.77]
[1617631215188,2.90695,2085.0,2084.9,5.2193]
[1617631215389,2.90695,2085.0,2084.4,5.86]
[1617631215789,2.90695,2085.0,2084.0,5.86]
[1617631215991,32.90695,2085.0,2084.5,5.77]
[1617631216190,2.90695,2084.6,2084.5,5.77]
[1617631216391,2.90695,2084.6,2084.1,5.3788]
[1617631216594,2.90695,2084.6,2084.5,5.46]
[1617631216791,2.90695,2084.6,2084.5,0.0001]
[1617631216991,2.90695,2084.6,2083.0,72.7681]
[1617631216992,2.90695,2084.6,2084.2,0.47]
[1617631217292,2.90695,2084.6,2084.5,1.36]
[1617631217491,2.90695,2084.6,2084.3,4.73]
[1617631217891,2.90695,2084.6,2084.5,1.18]
[1617631218093,2.90695,2084.6,2084.4,5.1]
[1617631218492,2.90695,2084.6,2084.5,1.07]
[1617631218692,2.90695,2084.6,2083.9,5.54]
[1617631219095,2.90695,2084.6,2084.5,5.79]
[1617631219292,2.90695,2084.6,2083.9,5.82]
[1617631219692,2.90695,2084.6,2084.5,5.78]
[1617631219895,2.90695,2084.6,2083.9,5.96]
[1617631220291,2.0,2085.4,2084.5,5.75]
[1617631220292,32.0,2085.4,2084.5,5.75]
[1617631220492,32.0,2085.4,2083.9,5.92]
[1617631220792,32.0,2085.4,2084.6,6.0]
[1617631221193,32.0,2085.4,2083.9,5.94]
[1617631221393,106.3312,2085.4,2084.7,5.89]
[1617631221592,106.3312,2085.4,2082.2,70.542]
[1617631221795,106.3312,2085.4,2084.0,6.03]
[1617631221993,106.3312,2085.4,2084.8,0.29]
[1617631222194,106.3312,2085.4,2082.2,70.542]